fUST/lending_fUST_20251008
["ID","MTS","AMOUNT","RATE_DAILY","PERIOD"]
[389808849,1759857041602,-500.0,0.00022995,2]
[389808850,1759857041611,-1387.82681699,0.00023,2]
[389808851,1759857041620,-12500.0,0.00023,7]
[389808852,1759857041629,-151.0,0.00023,9]
[389808853,1759857041638,-160.0,0.00023,2]
[389808854,1759857041648,-168.88576873,0.00023002,2]
[389808855,1759857041658,-19292.2273969,0.00023002,2]
[389808856,1759857041667,-7504.55,0.00023013,2]
[389808857,1759857041677,-500.0,0.00023024,2]
[389808858,1759857041687,-500.0,0.00023052,2]
[389808859,1759857041697,-1473.0,0.00023076,2]
[389808860,1759857041707,-500.0,0.00023082,2]
[389808861,1759857041717,-1804.32425582,0.0002309,2]
[389808862,1759857041727,-151.0,0.000231,7]
[389808863,1759857041738,-151.0,0.000231,10]
[389808864,1759857041748,-200.0,0.000231,2]
[389808865,1759857041757,-1473.0,0.0002313,2]
[389808866,1759857041766,-800.0,0.00023154,2]
[389808867,1759857041776,-741.24828283,0.00023175,2]
[389808868,1759857041785,-1387.82681699,0.000232,2]
[389808869,1759857041794,-500.0,0.00023221,2]
[389808870,1759857041803,-800.0,0.00023251,2]
[389808871,1759857041813,-1000.0,0.0002327,5]
[389808872,1759857041822,-500.0,0.00023287,2]
[389808873,1759857041831,-176.0,0.00023288,9]
[389808874,1759857041840,-3000.0,0.0002329,2]
[389808875,1759857041850,-800.0,0.00023293,2]
[389808876,1759857041859,-151.0,0.000233,10]
[389808877,1759857041869,-513.94319584,0.00023304,2]
[389808878,1759857041878,-2500.0,0.00023314,2]
[389808879,1759857041888,-2500.0,0.00023336,2]
[389808880,1759857041897,-2569.27703144,0.00023347,2]
[389808881,1759857041907,-279.06357233,0.0002336,2]
[389808882,1759857041916,-151.0,0.000234,8]
[389808883,1759857041926,-151.0,0.000234,10]
[389808884,1759857041936,-1009.489455,0.000234,2]
[389808885,1759857041945,-6485.2130512,0.000234,2]
[389808886,1759857041954,-1473.0,0.00023435,2]
[389808887,1759857041963,-153.151123,0.0002345,2]
[389808888,1759857041972,-800.0,0.00023452,2]
[389808889,1759857041980,-800.0,0.00023461,2]
[389808890,1759857041991,-560.0,0.00023465,2]
[389808891,1759857042000,-800.0,0.00023485,2]
[389808892,1759857042009,-1387.82681699,0.000235,2]
[389808893,1759857042018,-200.0,0.0002351,2]
[389808894,1759857042028,-20006.03981059,0.0002355,2]
[389808895,1759857042199,-168.0,0.00023557,2]
[389808896,1759857042246,-800.0,0.00023578,2]
[389808897,1759857042256,-1473.0,0.00023579,2]
[389808898,1759857042266,-19275.43712868,0.00023579,2]
[389808899,1759857042276,-151.0,0.000236,5]
[389808900,1759857042286,-6485.15,0.000236,2]
[389808901,1759857042296,-168.0,0.00023624,2]
[389808902,1759857042306,-800.0,0.00023631,2]
[389808903,1759857042316,-800.0,0.00023635,2]
[389808904,1759857042325,-1473.0,0.00023639,2]
[389808905,1759857042335,-1473.0,0.00023658,2]
[389808906,1759857042352,-796.116,0.00023663,4]
[389808907,1759857042363,-780.26135035,0.00023675,2]
[389808908,1759857042372,-800.0,0.00023683,2]
[389808909,1759857042381,-800.0,0.00023695,2]
[389808910,1759857042390,-1387.82681699,0.000237,2]
[389808911,1759857042399,-151.0,0.000237,7]
[389808912,1759857042409,-151.0,0.000237,9]
[389808913,1759857042418,-1473.0,0.00023722,2]
[389808914,1759857042427,-1473.0,0.00023738,2]
[389808915,1759857042440,-800.0,0.00023759,2]
[389808916,1759857042449,-559.08930847,0.00023777,2]
[389808917,1759857042459,-1804.32425582,0.000238,2]
[389808918,1759857042468,-176.96952833,0.000238,2]
[389808919,1759857042479,-153.151123,0.0002381,3]
[389808920,1759857042490,-153.151123,0.00023818,7]
[389808921,1759857042499,-209.51310264,0.00023838,2]
[389808922,1759857042511,-1124.02490268,0.00023862,2]
[389808923,1759857042521,-500.0,0.00023873,2]
[389808924,1759857042530,-500.0,0.00023873,2]
[389808925,1759857042540,-500.0,0.00023873,2]
[389808926,1759857042550,-500.0,0.00023873,2]
[389808927,1759857042559,-3000.0,0.00023883,2]
[389808928,1759857042569,-27835.8199822,0.00023888,2]
[389808929,1759857042578,-1786.9138422,0.00023888,2]
[389808930,1759857042588,-37860.8186465,0.00023888,2]
[389808931,1759857042597,-869.67,0.00023899,5]
[389808932,1759857042607,-1387.82681699,0.000239,2]
[389808933,1759857042616,-13274.6524498,0.000239,2]
[389808934,1759857042651,-356725.3475502,0.000239,2]
[389808935,1759857042661,-10000.0,0.000239,2]
[389808936,1759857042670,-3296.631579,0.000239,2]
[389808937,1759857042680,-151.0,0.000239,7]
[389808938,1759857042690,-1000.0,0.000239,2]
[389808939,1759857042700,-477.682751,0.000239,7]
[389808940,1759857042710,-477.682751,0.000239,7]
[389808941,1759857042720,-192.316681,0.000239,7]
[389808942,1759857042729,-477.682751,0.000239,7]
[389808943,1759857042741,-192.316681,0.000239,7]
[389808944,1759857042751,-477.682751,0.000239,7]
[389808945,1759857042760,-192.316681,0.000239,7]
[389808946,1759857042769,-192.316681,0.000239,7]
[389808947,1759857042779,-304.14148,0.000239,7]
[389808948,1759857042788,-304.14148,0.000239,7]
[389808949,1759857042797,-304.14148,0.000239,7]
[389808950,1759857042806,-304.14148,0.000239,7]
[389808951,1759857042816,-156.136887,0.000239,7]
[389808952,1759857042825,-156.136887,0.000239,7]
[389808953,1759857042834,-156.136887,0.000239,7]
[389808954,1759857042843,-156.136887,0.000239,7]
[389808955,1759857042852,-151.0,0.000239,7]
[389808956,1759857042862,-151.0,0.000239,7]
[389808957,1759857042871,-242.588231,0.000239,7]
[389808958,1759857042880,-242.588231,0.000239,7]
[389808959,1759857042889,-242.588231,0.000239,7]
[389808962,1759857042899,-242.588231,0.000239,7]
[389808964,1759857042908,-151.0,0.000239,7]
[389808966,1759857042917,-185.490474,0.000239,7]
[389808968,1759857042927,-2166.917464,0.000239,7]
[389808969,1759857042937,-261.594123,0.000239,7]
[389808971,1759857042947,-2166.917464,0.000239,7]
[389808973,1759857042956,-261.594123,0.000239,7]
[389808975,1759857042966,-2166.917464,0.000239,7]
[389808976,1759857042975,-261.594123,0.000239,7]
[389808978,1759857042989,-2166.917464,0.000239,7]
[389808980,1759857042999,-261.594123,0.000239,7]
[389808981,1759857043008,-338.603931,0.000239,7]
[389808982,1759857043018,-151.0,0.000239,7]
[389808983,1759857043028,-338.603931,0.000239,7]
[389808984,1759857043037,-151.0,0.000239,7]
[389808985,1759857043047,-338.603931,0.000239,7]
[389808986,1759857043056,-152.774477,0.000239,7]
[389808987,1759857043065,-338.603931,0.000239,7]
[389808988,1759857043075,-7761.23125092,0.000239,2]
[389808989,1759857043084,-298.911972,0.000239,7]
[389808990,1759857043093,-298.911972,0.000239,7]
[389808991,1759857043104,-298.911972,0.000239,7]
[389808992,1759857043113,-298.911972,0.000239,7]
[389808993,1759857043122,-12390.35027005,0.000239,2]
[389808994,1759857043131,-151.0,0.000239,7]
[389808995,1759857043141,-151.0,0.000239,7]
[389808996,1759857043150,-540.743678,0.000239,7]
[389808997,1759857043159,-171.33349,0.000239,7]
[389808998,1759857043168,-540.743678,0.000239,7]
[389808999,1759857043177,-540.743678,0.000239,7]
[389809000,1759857043186,-540.743678,0.000239,7]
[389809001,1759857043196,-187.476666,0.000239,7]
[389809002,1759857043205,-151.0,0.000239,7]
[389809004,1759857043213,-187.476666,0.000239,7]
[389809006,1759857043223,-260.434702,0.000239,7]
[389809007,1759857043233,-151.0,0.000239,7]
[389809008,1759857043244,-187.476666,0.000239,7]
[389809009,1759857043253,-10000.0,0.000239,7]
[389809010,1759857043263,-260.434702,0.000239,7]
[389809012,1759857043273,-187.476666,0.000239,7]
[389809014,1759857043282,-260.434702,0.000239,7]
[389809016,1759857043291,-10000.0,0.000239,7]
[389809018,1759857043300,-260.434702,0.000239,7]
[389809020,1759857043309,-10000.0,0.000239,7]
[389809022,1759857043318,-10000.0,0.000239,7]
[389809024,1759857043327,-10000.0,0.000239,7]
[389809026,1759857043336,-298.180384,0.000239,7]
[389809028,1759857043346,-3148.365341,0.000239,7]
[389809030,1759857043355,-266.71418,0.000239,7]
[389809032,1759857043365,-266.71418,0.000239,7]
[389809034,1759857043374,-266.71418,0.000239,7]
[389809036,1759857043383,-266.71418,0.000239,7]
[389809038,1759857043393,-230.591713,0.000239,7]
[389809040,1759857043402,-230.591713,0.000239,7]
[389809042,1759857043411,-230.591713,0.000239,7]
[389809044,1759857043421,-230.591713,0.000239,7]
[389809046,1759857043431,-151.0,0.000239,7]
[389809048,1759857043444,-151.0,0.000239,7]
[389809050,1759857043454,-151.0,0.000239,7]
[389809052,1759857043463,-151.0,0.000239,7]
[389809054,1759857043473,-151.0,0.000239,7]
[389809056,1759857043482,-160.70339,0.000239,7]
[389809058,1759857043493,-151.06607995,0.000239,2]
[389809060,1759857043503,-151.0,0.000239,7]
[389809062,1759857043514,-160.70339,0.000239,7]
[389809064,1759857043523,-151.0,0.000239,7]
[389809066,1759857043533,-160.70339,0.000239,7]
[389809068,1759857043543,-151.0,0.000239,7]
[389809070,1759857043552,-160.70339,0.000239,7]
[389809072,1759857043561,-151.0,0.000239,7]
[389809074,1759857043571,-800.0,0.00023909,2]
[389809076,1759857043580,-800.0,0.00023922,2]
[389809078,1759857043590,-168.0,0.00023937,2]
[389809080,1759857043599,-800.0,0.00023964,2]
[389809082,1759857043608,-500.0,0.00023973,2]
[389809084,1759857043617,-500.0,0.00023973,2]
[389809085,1759857043626,-500.0,0.00023973,2]
[389809087,1759857043635,-500.0,0.00023973,2]
[389809089,1759857043644,-500.0,0.00023973,2]
[389809091,1759857043654,-500.0,0.00023973,2]
[389809093,1759857043663,-500.0,0.00023973,2]
[389809095,1759857043673,-500.0,0.00023973,2]
[389809097,1759857043682,-500.0,0.00023973,2]
[389809099,1759857043692,-500.0,0.00023973,2]
[389809101,1759857043701,-500.0,0.00023973,2]
[389809103,1759857043711,-556.8347076,0.00023973,2]
[389809105,1759857043720,-500.0,0.00023973,2]
[389809107,1759857043730,-500.0,0.00023973,2]
[389809109,1759857043740,-500.0,0.00023973,2]
[389809111,1759857043750,-500.0,0.00023973,2]
[389809113,1759857043760,-500.0,0.00023973,2]
[389809115,1759857043769,-603.92426928,0.00023973,2]
[389809117,1759857043780,-500.0,0.00023973,2]
[389809119,1759857043795,-500.0,0.00023973,2]
[389809121,1759857043804,-500.0,0.00023973,2]
[389809123,1759857043813,-500.0,0.00023973,2]
[389809125,1759857043822,-500.0,0.00023973,2]
[389809127,1759857043831,-500.0,0.00023973,2]
[389809130,1759857043841,-500.0,0.00023973,2]
[389809131,1759857043851,-500.0,0.00023973,2]
[389809133,1759857043860,-500.0,0.00023973,2]
[389809136,1759857043870,-510.46914813,0.00023973,2]
[389809137,1759857043879,-203.67230258,0.00023973,2]
[389809140,1759857043889,-503.7657808,0.00023973,2]
[389809142,1759857043899,-500.0,0.00023973,2]
[389809144,1759857043908,-500.0,0.00023973,2]
[389809145,1759857043918,-500.0,0.00023973,2]
[389809147,1759857043928,-500.0,0.00023973,2]
[389809149,1759857043938,-500.0,0.00023973,2]
[389809152,1759857043948,-500.0,0.00023973,2]
[389809153,1759857043957,-500.0,0.00023973,2]
[389809156,1759857043967,-163.92239522,0.00023973,2]
[389809158,1759857043977,-500.0,0.00023973,2]
[389809160,1759857043986,-500.0,0.00023973,2]
[389809162,1759857043996,-500.0,0.00023973,2]
[389809164,1759857044006,-517.91923232,0.00023973,2]
[389809165,1759857044016,-500.0,0.00023973,2]
[389809168,1759857044026,-500.0,0.00023973,2]
[389809170,1759857044036,-500.0,0.00023973,2]
[389809172,1759857044045,-161.55304732,0.00023973,2]
[389809174,1759857044055,-500.0,0.00023973,2]
[389809176,1759857044065,-500.0,0.00023973,2]
[389809177,1759857044074,-500.0,0.00023973,2]
[389809179,1759857044084,-526.71245322,0.00023973,2]
[389809182,1759857044094,-500.0,0.00023973,2]
[389809184,1759857044103,-500.0,0.00023973,2]
[389809185,1759857044113,-627.73257475,0.00023973,2]
[389809187,1759857044122,-500.0,0.00023973,2]
[389809189,1759857044131,-500.0,0.00023973,2]
[389809191,1759857044140,-500.0,0.00023973,2]
[389809193,1759857044149,-511.89809001,0.00023973,2]
[389809195,1759857044159,-500.0,0.00023973,2]
[389809197,1759857044168,-500.0,0.00023973,2]
[389809199,1759857044177,-20412.08290404,0.00023973,2]
[389809202,1759857044186,-151.0,0.00023973,2]
[389809203,1759857044196,-180.15202945,0.00023973,3]
[389809205,1759857044205,-175.0,0.00023973,3]
[389809207,1759857044214,-175.0,0.00023973,3]
[389809210,1759857044223,-175.0,0.00023973,3]
[389809212,1759857044233,-174.8657094,0.00023973,3]
[389809214,1759857044245,-157.0,0.00023973,3]
[389809216,1759857044255,-157.48027675,0.00023973,3]
[389809218,1759857044265,-800.0,0.00023984,2]
[389809220,1759857044274,-200.0,0.00023999,2]
[389809222,1759857044284,-944697.2628065,0.00024,7]
[389809223,1759857044293,-160.0,0.00024,7]
[389809226,1759857044303,-1713.54983154,0.00024,2]
[389809228,1759857044312,-163.57265181,0.00024,2]
[389809230,1759857044321,-1166.47158829,0.00024,2]
[389809232,1759857044330,-152.0,0.00024,3]
[389809234,1759857044340,-152.0,0.00024,3]
[389809236,1759857044349,-152.0,0.00024,3]
[389809238,1759857044359,-152.0,0.00024,3]
[389809240,1759857044369,-152.0,0.00024,3]
[389809242,1759857044378,-152.0,0.00024,3]
[389809244,1759857044387,-152.0,0.00024,3]
[389809245,1759857044396,-152.0,0.00024,3]
[389809246,1759857044405,-152.0,0.00024,3]
[389809247,1759857044414,-152.0,0.00024,3]
[389809248,1759857044423,-152.0,0.00024,3]
[389809249,1759857044432,-152.0,0.00024,3]
[389809250,1759857044449,-152.0,0.00024,3]
[389809251,1759857044459,-152.0,0.00024,3]
[389809252,1759857044468,-152.0,0.00024,3]
[389809253,1759857044477,-152.0,0.00024,3]
[389809254,1759857044488,-152.0,0.00024,3]
[389809255,1759857044497,-152.0,0.00024,3]
[389809256,1759857044506,-215.33827402,0.00024,3]
[389809257,1759857044515,-329.0,0.00024,3]
[389809258,1759857044524,-329.0,0.00024,3]
[389809259,1759857044533,-329.0,0.00024,3]
[389809260,1759857044542,-329.0,0.00024,3]
[389809261,1759857044550,-329.0,0.00024,3]
[389809262,1759857044560,-329.0,0.00024,3]
[389809263,1759857044571,-329.0,0.00024,3]
[389809264,1759857044580,-329.0,0.00024,3]
[389809265,1759857044589,-329.0,0.00024,3]
[389809266,1759857044598,-329.0,0.00024,3]
[389809267,1759857044608,-329.0,0.00024,3]
[389809268,1759857044617,-329.0,0.00024,3]
[389809269,1759857044627,-329.0,0.00024,3]
[389809270,1759857044636,-402.89972253,0.00024,3]
[389809271,1759857044646,-172.0,0.00024,3]
[389809273,1759857044656,-173.62936439,0.00024,3]
[389809276,1759857044666,-151.0,0.00024,5]
[389809278,1759857044676,-151.0,0.00024,6]
[389809280,1759857044686,-151.0,0.00024,8]
[389809282,1759857044696,-151.0,0.00024,9]
[389809284,1759857044705,-151.0,0.00024,8]
[389809286,1759857044714,-151.0,0.00024,8]
[389809288,1759857044724,-151.0,0.00024,5]
[389809290,1759857044733,-151.0,0.00024,9]
[389809292,1759857044743,-402.02512307,0.00024,7]
[389809294,1759857044753,-234.20938206,0.00024,7]
[389809296,1759857044762,-533.72506543,0.00024,7]
[389809298,1759857044771,-151.0,0.00024,7]
[389809300,1759857044781,-151.0,0.00024,7]
[389809302,1759857044790,-151.0,0.00024,7]
[389809304,1759857044800,-151.0,0.00024,7]
[389809306,1759857044809,-151.0,0.00024,7]
[389809308,1759857044819,-151.0,0.00024,7]
[389809310,1759857044828,-151.0,0.00024,7]
[389809312,1759857044837,-151.0,0.00024,7]
[389809314,1759857044846,-151.0,0.00024,7]
[389809316,1759857044855,-151.0,0.00024,7]
[389809318,1759857044865,-153.014661,0.00024,7]
[389809320,1759857044875,-151.0,0.00024,7]
[389809322,1759857044884,-153.014661,0.00024,7]
[389809324,1759857044894,-151.0,0.00024,7]
[389809326,1759857044903,-153.014661,0.00024,7]
[389809328,1759857044912,-151.0,0.00024,7]
[389809330,1759857044924,-153.014661,0.00024,7]
[389809332,1759857044933,-151.0,0.00024,7]
[389809334,1759857044942,-183.738867,0.00024,7]
[389809336,1759857044951,-151.0,0.00024,7]
[389809338,1759857044960,-151.0,0.00024,7]
[389809340,1759857044969,-171.016338,0.00024,7]
[389809342,1759857044978,-171.016338,0.00024,7]
[389809344,1759857044988,-171.016338,0.00024,7]
[389809346,1759857044997,-171.016338,0.00024,7]
[389809348,1759857045006,-151.0,0.00024,7]
[389809349,1759857045014,-151.0,0.00024,7]
[389809351,1759857045023,-256.0,0.00024,7]
[389809353,1759857045032,-256.0,0.00024,7]
[389809355,1759857045042,-256.0,0.00024,7]
[389809357,1759857045051,-256.0,0.00024,7]
[389809359,1759857045060,-151.0,0.00024,7]
[389809361,1759857045069,-582.740774,0.00024,7]
[389809363,1759857045079,-582.740774,0.00024,7]
[389809365,1759857045089,-582.740774,0.00024,7]
[389809367,1759857045098,-582.740774,0.00024,7]
[389809369,1759857045107,-151.0,0.00024,7]
[389809371,1759857045118,-151.0,0.00024,7]
[389809373,1759857045127,-151.0,0.00024,7]
[389809375,1759857045136,-151.0,0.00024,7]
[389809377,1759857045146,-151.0,0.00024,7]
[389809380,1759857045156,-240.5916,0.00024,2]
[389809382,1759857045166,-151.0,0.00024,7]
[389809384,1759857045176,-240.5916,0.00024,2]
[389809386,1759857045185,-151.0,0.00024,7]
[389809388,1759857045194,-240.5916,0.00024,2]
[389809389,1759857045203,-151.0,0.00024,7]
[389809391,1759857045212,-151.0,0.00024,7]
[389809393,1759857045221,-151.0,0.00024,7]
[389809395,1759857045230,-240.5916,0.00024,2]
[389809397,1759857045240,-151.0,0.00024,7]
[389809399,1759857045249,-151.0,0.00024,7]
[389809401,1759857045258,-151.0,0.00024,7]
[389809403,1759857045267,-163.791041,0.00024,7]
[389809405,1759857045277,-163.791041,0.00024,7]
[389809407,1759857045287,-151.0,0.00024,7]
[389809409,1759857045296,-163.791041,0.00024,7]
[389809411,1759857045306,-163.791041,0.00024,7]
[389809413,1759857045315,-151.0,0.00024,7]
[389809415,1759857045324,-151.0,0.00024,7]
[389809417,1759857045333,-151.0,0.00024,7]
[389809419,1759857045342,-151.0,0.00024,7]
[389809421,1759857045351,-192.047637,0.00024,7]
[389809423,1759857045360,-151.0,0.00024,7]
[389809425,1759857045369,-192.047637,0.00024,7]
[389809427,1759857045378,-151.480731,0.00024,7]
[389809429,1759857045387,-151.0,0.00024,7]
[389809431,1759857045397,-192.047637,0.00024,7]
[389809434,1759857045406,-259.878769,0.00024,7]
[389809436,1759857045416,-192.047637,0.00024,7]
[389809438,1759857045425,-497.569899,0.00024,7]
[389809440,1759857045438,-497.569899,0.00024,7]
[389809442,1759857045447,-497.569899,0.00024,7]
[389809443,1759857045457,-151.0,0.00024,7]
[389809446,1759857045467,-497.569899,0.00024,7]
[389809447,1759857045477,-183.812316,0.00024,7]
[389809450,1759857045487,-183.812316,0.00024,7]
[389809451,1759857045496,-183.812316,0.00024,7]
[389809453,1759857045506,-183.812316,0.00024,7]
[389809455,1759857045517,-151.0,0.00024,7]
[389809457,1759857045527,-151.0,0.00024,7]
[389809460,1759857045536,-151.0,0.00024,7]
[389809461,1759857045546,-151.0,0.00024,7]
[389809463,1759857045555,-151.0,0.00024,7]
[389809465,1759857045564,-339.819151,0.00024,7]
[389809467,1759857045574,-339.819151,0.00024,7]
[389809469,1759857045584,-339.819151,0.00024,7]
[389809471,1759857045593,-339.819151,0.00024,7]
[389809474,1759857045602,-151.0,0.00024,7]
[389809476,1759857045612,-151.0,0.00024,7]
[389809478,1759857045621,-151.0,0.00024,7]
[389809480,1759857045630,-151.0,0.00024,7]
[389809482,1759857045639,-151.0,0.00024,7]
[389809484,1759857045648,-152.885354,0.00024,7]
[389809486,1759857045658,-151.0,0.00024,7]
[389809488,1759857045667,-151.0,0.00024,7]
[389809490,1759857045676,-201.921772,0.00024,7]
[389809492,1759857045685,-151.0,0.00024,7]
[389809493,1759857045693,-151.0,0.00024,7]
[389809495,1759857045702,-151.0,0.00024,7]
[389809497,1759857045712,-151.0,0.00024,7]
[389809499,1759857045721,-151.0,0.00024,7]
[389809501,1759857045730,-151.0,0.00024,7]
[389809503,1759857045740,-151.0,0.00024,7]
[389809505,1759857045749,-151.0,0.00024,7]
[389809507,1759857045759,-151.0,0.00024,7]
[389809509,1759857045768,-513.669833,0.00024,7]
[389809511,1759857045779,-151.0,0.00024,7]
[389809513,1759857045789,-513.669833,0.00024,7]
[389809515,1759857045798,-513.669833,0.00024,7]
[389809517,1759857045808,-513.669833,0.00024,7]
[389809519,1759857045817,-151.0,0.00024,7]
[389809521,1759857045827,-151.0,0.00024,7]
[389809524,1759857045837,-151.0,0.00024,7]
[389809526,1759857045846,-477.682751,0.00024,7]
[389809527,1759857045856,-477.682751,0.00024,7]
[389809530,1759857045866,-192.316681,0.00024,7]
[389809531,1759857045875,-477.682751,0.00024,7]
[389809533,1759857045884,-192.316681,0.00024,7]
[389809537,1759857045894,-477.682751,0.00024,7]
[389809539,1759857045904,-192.316681,0.00024,7]
[389809540,1759857045913,-192.316681,0.00024,7]
[389809542,1759857045922,-304.14148,0.00024,7]
[389809544,1759857045931,-304.14148,0.00024,7]
[389809546,1759857045940,-304.14148,0.00024,7]
[389809548,1759857045950,-304.14148,0.00024,7]
[389809550,1759857045959,-156.136887,0.00024,7]
[389809552,1759857045968,-156.136887,0.00024,7]
[389809554,1759857045977,-156.136887,0.00024,7]
[389809556,1759857045987,-156.136887,0.00024,7]
[389809558,1759857045997,-151.0,0.00024,7]
[389809562,1759857046006,-242.588231,0.00024,7]
[389809564,1759857046015,-242.588231,0.00024,7]
[389809566,1759857046025,-242.588231,0.00024,7]
[389809568,1759857046034,-242.588231,0.00024,7]
[389809570,1759857046043,-151.0,0.00024,7]
[389809572,1759857046053,-2166.917464,0.00024,7]
[389809574,1759857046062,-261.594123,0.00024,7]
[389809576,1759857046072,-2166.917464,0.00024,7]
[389809578,1759857046081,-261.594123,0.00024,7]
[389809580,1759857046090,-2166.917464,0.00024,7]
[389809582,1759857046099,-261.594123,0.00024,7]
[389809584,1759857046108,-2166.917464,0.00024,7]
[389809586,1759857046117,-261.594123,0.00024,7]
[389809588,1759857046127,-338.603931,0.00024,7]
[389809590,1759857046137,-151.0,0.00024,7]
[389809593,1759857046146,-338.603931,0.00024,7]
[389809594,1759857046155,-151.0,0.00024,7]
[389809596,1759857046165,-338.603931,0.00024,7]
[389809598,1759857046174,-686.875483,0.00024,7]
[389809620,1759857046362,-151.0,0.00024,7]
[389809622,1759857046371,-338.603931,0.00024,7]
[389809624,1759857046381,-686.875483,0.00024,7]
[389809626,1759857046390,-151.0,0.00024,7]
[389809628,1759857046399,-686.875483,0.00024,7]
[389809630,1759857046408,-151.0,0.00024,7]
[389809632,1759857046418,-686.875483,0.00024,7]
[389809634,1759857046427,-151.0,0.00024,7]
[389809636,1759857046440,-1760.881411,0.00024,7]
[389809638,1759857046449,-151.0,0.00024,7]
[389809640,1759857046458,-151.0,0.00024,7]
[389809642,1759857046467,-1760.881411,0.00024,7]
[389809644,1759857046478,-717.189875,0.00024,7]
[389809646,1759857046487,-151.0,0.00024,7]
[389809648,1759857046497,-1760.881411,0.00024,7]
[389809650,1759857046507,-717.189875,0.00024,7]
[389809652,1759857046516,-151.0,0.00024,7]
[389809654,1759857046527,-1760.881411,0.00024,7]
[389809656,1759857046536,-717.189875,0.00024,7]
[389809658,1759857046546,-161.378252,0.00024,7]
[389809660,1759857046555,-717.189875,0.00024,7]
[389809662,1759857046564,-356.531833,0.00024,7]
[389809664,1759857046573,-298.911972,0.00024,7]
[389809666,1759857046582,-151.0,0.00024,7]
[389809668,1759857046591,-234.063355,0.00024,7]
[389809670,1759857046602,-356.531833,0.00024,7]
[389809672,1759857046611,-298.911972,0.00024,7]
[389809674,1759857046621,-234.063355,0.00024,7]
[389809676,1759857046630,-356.531833,0.00024,7]
[389809678,1759857046640,-298.911972,0.00024,7]
[389809680,1759857046649,-234.063355,0.00024,7]
[389809682,1759857046659,-356.531833,0.00024,7]
[389809684,1759857046668,-298.911972,0.00024,7]
[389809686,1759857046677,-234.063355,0.00024,7]
[389809688,1759857046686,-151.0,0.00024,7]
[389809690,1759857046695,-151.0,0.00024,7]
[389809692,1759857046705,-151.0,0.00024,7]
[389809694,1759857046715,-157.016112,0.00024,7]
[389809696,1759857046724,-596.654506,0.00024,7]
[389809698,1759857046733,-596.654506,0.00024,7]
[389809700,1759857046742,-596.654506,0.00024,7]
[389809702,1759857046752,-596.654506,0.00024,7]
[389809704,1759857046761,-151.0,0.00024,7]
[389809706,1759857046770,-151.0,0.00024,7]